[Event "Late-Titled-Tuesday-Blitz-April-30-2024"]
[Site "Chess.com"]
[Date "2024.04.30"]
[Round "6"]
[White "Shankland"]
[Black "Jospem"]
[Result "1/2-1/2"]
[WhiteElo "2959"]
[BlackElo "3122"]
[TimeControl "180+1"]
[EndTime "15:07:39 PDT"]
[Termination "Game drawn - insufficient material"]

1. d4 {[%clk 0:03:00.9]} 1... Nf6 {[%clk 0:03:00.4]} 2. c4 {[%clk 0:03:00.9]}
2... d6 {[%clk 0:03:01.3]} 3. Nf3 {[%clk 0:02:59.8]} 3... Nbd7 {[%clk
0:03:02.2]} 4. Nc3 {[%clk 0:02:59.5]} 4... e5 {[%clk 0:03:02.7]} 5. e4 {[%clk
0:02:59.9]} 5... Be7 {[%clk 0:03:02.9]} 6. Be2 {[%clk 0:02:59.6]} 6... O-O
{[%clk 0:03:03.2]} 7. O-O {[%clk 0:03:00.3]} 7... Re8 {[%clk 0:03:03.8]} 8. Qc2
{[%clk 0:03:00.5]} 8... Bf8 {[%clk 0:03:04.1]} 9. Rd1 {[%clk 0:03:00.7]} 9... c6
{[%clk 0:03:04.7]} 10. b4 {[%clk 0:02:59.8]} 10... Qc7 {[%clk 0:02:59.6]} 11. h3
{[%clk 0:02:55.2]} 11... a6 {[%clk 0:02:58.9]} 12. Be3 {[%clk 0:02:54.3]} 12...
a5 {[%clk 0:02:39.6]} 13. a3 {[%clk 0:02:42.9]} 13... exd4 {[%clk 0:02:39.2]}
14. Nxd4 {[%clk 0:02:42.4]} 14... Ne5 {[%clk 0:02:39.8]} 15. b5 {[%clk
0:02:36.3]} 15... Ned7 {[%clk 0:02:23.9]} 16. bxc6 {[%clk 0:02:26.6]} 16... bxc6
{[%clk 0:02:24.8]} 17. Bf4 {[%clk 0:02:26.7]} 17... Nc5 {[%clk 0:02:13.2]} 18.
Bf3 {[%clk 0:02:26.5]} 18... Nfd7 {[%clk 0:02:10.5]} 19. Na4 {[%clk 0:02:02.9]}
19... Ne5 {[%clk 0:02:04]} 20. Nxc5 {[%clk 0:01:56.6]} 20... dxc5 {[%clk
0:02:04.9]} 21. Bxe5 {[%clk 0:01:56.9]} 21... Rxe5 {[%clk 0:02:05.3]} 22. Nf5
{[%clk 0:01:54.4]} 22... g6 {[%clk 0:02:04.6]} 23. Ne3 {[%clk 0:01:53.9]} 23...
h5 {[%clk 0:02:05.1]} 24. Rd3 {[%clk 0:01:52.2]} 24... Re8 {[%clk 0:02:00.4]}
25. Rad1 {[%clk 0:01:52]} 25... Be6 {[%clk 0:01:59.9]} 26. e5 {[%clk 0:01:43.9]}
26... Rac8 {[%clk 0:01:52.6]} 27. Qc3 {[%clk 0:01:39.4]} 27... a4 {[%clk
0:01:30]} 28. g4 {[%clk 0:01:23.9]} 28... h4 {[%clk 0:01:28.8]} 29. g5 {[%clk
0:01:19.3]} 29... Qe7 {[%clk 0:01:25.9]} 30. Qd2 {[%clk 0:01:05.1]} 30... Qxg5+
{[%clk 0:01:08]} 31. Ng4 {[%clk 0:01:05.1]} 31... Be7 {[%clk 0:01:08.2]} 32.
Qxg5 {[%clk 0:01:02.2]} 32... Bxg5 {[%clk 0:01:09.1]} 33. Nf6+ {[%clk
0:01:02.3]} 33... Bxf6 {[%clk 0:01:08.7]} 34. exf6 {[%clk 0:01:03.2]} 34... Bxc4
{[%clk 0:01:03]} 35. Rc3 {[%clk 0:01:03.4]} 35... Bd5 {[%clk 0:01:02]} 36. Bxd5
{[%clk 0:01:02]} 36... cxd5 {[%clk 0:01:02.9]} 37. Rxd5 {[%clk 0:01:02.3]} 37...
Rc6 {[%clk 0:00:57.8]} 38. Rdxc5 {[%clk 0:00:58.3]} 38... Rxf6 {[%clk
0:00:57.7]} 39. Rc8 {[%clk 0:00:58.4]} 39... Rxc8 {[%clk 0:00:51.9]} 40. Rxc8+
{[%clk 0:00:57.7]} 40... Kg7 {[%clk 0:00:52.8]} 41. Rc4 {[%clk 0:00:56.3]} 41...
Rf3 {[%clk 0:00:52.5]} 42. Rxa4 {[%clk 0:00:56.4]} 42... Rxh3 {[%clk 0:00:51.8]}
43. Kg2 {[%clk 0:00:56.9]} 43... Rb3 {[%clk 0:00:52.5]} 44. Rxh4 {[%clk
0:00:56.4]} 44... Rxa3 {[%clk 0:00:53.2]} 45. Rb4 {[%clk 0:00:56.5]} 45... Ra7
{[%clk 0:00:52.8]} 46. Rb6 {[%clk 0:00:56.6]} 46... Ra5 {[%clk 0:00:53.2]} 47.
Rc6 {[%clk 0:00:56.6]} 47... Rg5+ {[%clk 0:00:53.8]} 48. Kf3 {[%clk 0:00:56.7]}
48... Rd5 {[%clk 0:00:54.7]} 49. Kg3 {[%clk 0:00:57]} 49... Rd8 {[%clk
0:00:55.3]} 50. Rb6 {[%clk 0:00:56.7]} 50... Rh8 {[%clk 0:00:56.2]} 51. Rc6
{[%clk 0:00:57]} 51... Rh5 {[%clk 0:00:57.1]} 52. Rb6 {[%clk 0:00:57.2]} 52...
Rc5 {[%clk 0:00:57.8]} 53. Ra6 {[%clk 0:00:56.4]} 53... Rc1 {[%clk 0:00:58.4]}
54. Rb6 {[%clk 0:00:56.5]} 54... Rg1+ {[%clk 0:00:58.4]} 55. Kf3 {[%clk
0:00:55.7]} 55... Ra1 {[%clk 0:00:59.3]} 56. Kg3 {[%clk 0:00:52.9]} 56... Ra4
{[%clk 0:00:59.7]} 57. Kf3 {[%clk 0:00:52.8]} 57... g5 {[%clk 0:00:59.7]} 58.
Kg3 {[%clk 0:00:53.3]} 58... Ra3+ {[%clk 0:00:59.9]} 59. f3 {[%clk 0:00:53]}
59... f6 {[%clk 0:00:59.6]} 60. Rc6 {[%clk 0:00:53.2]} 60... Kg6 {[%clk
0:00:59.8]} 61. Rb6 {[%clk 0:00:53.5]} 61... Rc3 {[%clk 0:01:00.3]} 62. Ra6
{[%clk 0:00:53.1]} 62... Rc1 {[%clk 0:01:00.8]} 63. Rb6 {[%clk 0:00:53.1]} 63...
Ra1 {[%clk 0:01:01.5]} 64. Rc6 {[%clk 0:00:53]} 64... Rg1+ {[%clk 0:01:01.5]}
65. Kf2 {[%clk 0:00:52.2]} 65... Rb1 {[%clk 0:01:02.4]} 66. Kg3 {[%clk
0:00:52.7]} 66... Rb4 {[%clk 0:01:03]} 67. Rd6 {[%clk 0:00:52.3]} 67... Rb5
{[%clk 0:01:03.1]} 68. Ra6 {[%clk 0:00:52.2]} 68... Re5 {[%clk 0:01:03.7]} 69.
Rb6 {[%clk 0:00:52.3]} 69... Kf5 {[%clk 0:01:04.2]} 70. Ra6 {[%clk 0:00:52.5]}
70... Rd5 {[%clk 0:01:04.7]} 71. Rb6 {[%clk 0:00:52.3]} 71... Ke5 {[%clk
0:01:05.1]} 72. Ra6 {[%clk 0:00:52.1]} 72... f5 {[%clk 0:01:05]} 73. Rg6 {[%clk
0:00:50.4]} 73... g4 {[%clk 0:01:05.4]} 74. fxg4 {[%clk 0:00:48.2]} 74... Rd3+
{[%clk 0:01:05.9]} 75. Kf2 {[%clk 0:00:48.4]} 75... f4 {[%clk 0:01:04.9]} 76.
Ra6 {[%clk 0:00:46.8]} 76... Rd4 {[%clk 0:01:02.3]} 77. Kf3 {[%clk 0:00:44.9]}
77... Rd3+ {[%clk 0:01:02.7]} 78. Kf2 {[%clk 0:00:45.2]} 78... Rg3 {[%clk
0:01:03.6]} 79. Ra5+ {[%clk 0:00:44.7]} 79... Ke6 {[%clk 0:01:04.2]} 80. Rb5
{[%clk 0:00:44]} 80... Rxg4 {[%clk 0:01:04.3]} 81. Kf3 {[%clk 0:00:44.4]} 81...
Rh4 {[%clk 0:01:04.3]} 82. Ra5 {[%clk 0:00:44.8]} 82... Kd6 {[%clk 0:01:04.1]}
83. Rb5 {[%clk 0:00:45.1]} 83... Kc6 {[%clk 0:01:04.4]} 84. Rf5 {[%clk
0:00:45.2]} 84... Rh3+ {[%clk 0:01:04.1]} 85. Kxf4 {[%clk 0:00:45.2]} 85... Ra3
{[%clk 0:01:05]} 86. Ke4 {[%clk 0:00:45.3]} 86... Ra4+ {[%clk 0:01:05.2]} 87.
Kd3 {[%clk 0:00:45.6]} 87... Ra8 {[%clk 0:01:06.1]} 88. Rf6+ {[%clk 0:00:45.6]}
88... Kd5 {[%clk 0:01:07]} 89. Rf5+ {[%clk 0:00:46.1]} 89... Ke6 {[%clk
0:01:07.7]} 90. Rb5 {[%clk 0:00:46.2]} 90... Ra3+ {[%clk 0:01:08.4]} 91. Kc4
{[%clk 0:00:46.5]} 91... Ra8 {[%clk 0:01:09.3]} 92. Kb4 {[%clk 0:00:45.8]} 92...
Kd7 {[%clk 0:01:08.6]} 93. Ra5 {[%clk 0:00:46.1]} 93... Rxa5 {[%clk 0:01:09.3]}
94. Kxa5 {[%clk 0:00:46.2]} 1/2-1/2

[Event "Late-Titled-Tuesday-Blitz-April-30-2024"]
[Site "Chess.com"]
[Date "2024.04.30"]
[Round "6"]
[White "Bala-Afiada"]
[Black "jcmesafischer"]
[Result "0-1"]
[WhiteElo "1996"]
[BlackElo "2327"]
[TimeControl "180+1"]
[EndTime "15:07:40 PDT"]
[Termination "jcmesafischer won by resignation"]

1. d4 {[%clk 0:03:00.9]} 1... Nf6 {[%clk 0:00:13]} 2. c4 {[%clk 0:02:42.4]} 2...
e6 {[%clk 0:00:12.3]} 3. g3 {[%clk 0:02:42.9]} 3... d5 {[%clk 0:00:12.2]} 4. Nf3
{[%clk 0:02:41.8]} 4... Be7 {[%clk 0:00:12.7]} 5. Bg2 {[%clk 0:02:38.1]} 5...
O-O {[%clk 0:00:13.3]} 6. O-O {[%clk 0:02:36.6]} 6... dxc4 {[%clk 0:00:13.9]} 7.
Ne5 {[%clk 0:02:31]} 7... Nc6 {[%clk 0:00:13.7]} 8. Bxc6 {[%clk 0:02:26.3]} 8...
bxc6 {[%clk 0:00:14.6]} 9. Nxc6 {[%clk 0:02:26.8]} 9... Qd7 {[%clk 0:00:15.3]}
10. Nxe7+ {[%clk 0:02:23.4]} 10... Qxe7 {[%clk 0:00:16.2]} 11. Qa4 {[%clk
0:02:20.9]} 11... e5 {[%clk 0:00:14.5]} 12. Qxc4 {[%clk 0:02:05.7]} 12... Be6
{[%clk 0:00:11.4]} 13. Qc5 {[%clk 0:02:02.1]} 13... Qd7 {[%clk 0:00:04.3]} 14.
dxe5 {[%clk 0:01:56]} 14... Ne4 {[%clk 0:00:03.2]} 15. Qc2 {[%clk 0:01:49.3]}
15... Bf5 {[%clk 0:00:02.9]} 16. Qb3 {[%clk 0:01:40.4]} 16... Rfe8 {[%clk
0:00:02.1]} 17. Nc3 {[%clk 0:01:37.1]} 17... Nc5 {[%clk 0:00:01.7]} 18. Qb5
{[%clk 0:01:34.6]} 18... Qe7 {[%clk 0:00:02]} 19. Bf4 {[%clk 0:01:27.7]} 19...
Ne6 {[%clk 0:00:02.1]} 20. Rac1 {[%clk 0:01:22.7]} 20... Rab8 {[%clk 0:00:01.7]}
21. Qc6 {[%clk 0:01:17.2]} 21... Rxb2 {[%clk 0:00:02.6]} 22. Nd5 {[%clk
0:01:13.2]} 22... Qf8 {[%clk 0:00:03.3]} 23. Nxc7 {[%clk 0:01:01.6]} 23... Nxc7
{[%clk 0:00:04]} 24. Qxc7 {[%clk 0:01:01]} 24... Rxe2 {[%clk 0:00:04.7]} 25. Qd6
{[%clk 0:00:57]} 25... h6 {[%clk 0:00:04.8]} 26. Qxf8+ {[%clk 0:00:56.4]} 26...
Kxf8 {[%clk 0:00:05.7]} 27. a4 {[%clk 0:00:47.4]} 27... g5 {[%clk 0:00:05.6]}
28. Be3 {[%clk 0:00:45.3]} 28... Rxe5 {[%clk 0:00:05.7]} 29. Rc6 {[%clk
0:00:33.4]} 29... a5 {[%clk 0:00:04.5]} 30. Rxh6 {[%clk 0:00:31.4]} 30... Bg6
{[%clk 0:00:03.8]} 31. Bd4 {[%clk 0:00:28.9]} 31... Rd5 {[%clk 0:00:03.3]} 32.
Rh8+ {[%clk 0:00:26.6]} 32... Ke7 {[%clk 0:00:03.6]} 33. Bb6 {[%clk 0:00:20.4]}
33... Re4 {[%clk 0:00:04.1]} 34. f3 {[%clk 0:00:15.7]} 34... Rxa4 {[%clk
0:00:03.7]} 35. Re1+ {[%clk 0:00:13.7]} 35... Kf6 {[%clk 0:00:04.3]} 36. Bd8+
{[%clk 0:00:12]} 36... Kg7 {[%clk 0:00:03.9]} 37. Ree8 {[%clk 0:00:05.5]} 37...
Rxd8 {[%clk 0:00:01.8]} 38. Rxd8 {[%clk 0:00:05.5]} 38... Ra1+ {[%clk
0:00:02.2]} 39. Kg2 {[%clk 0:00:05.5]} 39... a4 {[%clk 0:00:02.8]} 40. Rhg8+
{[%clk 0:00:05.9]} 40... Kf6 {[%clk 0:00:02.7]} 41. Rd6+ {[%clk 0:00:06.4]}
41... Ke7 {[%clk 0:00:03.1]} 42. Ra6 {[%clk 0:00:06.3]} 42... a3 {[%clk
0:00:03.3]} 43. Rb8 {[%clk 0:00:06.6]} 43... a2 {[%clk 0:00:03.5]} 44. Rb7+
{[%clk 0:00:06.8]} 44... Kf8 {[%clk 0:00:03.3]} 45. Ra8+ {[%clk 0:00:07.3]}
45... Kg7 {[%clk 0:00:03.1]} 46. Rba7 {[%clk 0:00:08]} 46... Bb1 {[%clk
0:00:03.1]} 47. Rxa2 {[%clk 0:00:06.2]} 47... Rxa2+ {[%clk 0:00:02.8]} 48. Kh3
{[%clk 0:00:06.1]} 48... Rxa8 {[%clk 0:00:01.8]} 49. f4 {[%clk 0:00:06.3]} 49...
Ra7 {[%clk 0:00:02.7]} 50. fxg5 {[%clk 0:00:06.5]} 50... Ra4 {[%clk 0:00:03.6]}
51. g4 {[%clk 0:00:06.4]} 51... Bg6 {[%clk 0:00:04.5]} 52. Kh4 {[%clk
0:00:07.3]} 52... Be4 {[%clk 0:00:05.1]} 53. h3 {[%clk 0:00:08.2]} 53... Bf3
{[%clk 0:00:05.8]} 54. Kh5 {[%clk 0:00:09]} 54... Bxg4+ {[%clk 0:00:06.7]} 55.
hxg4 {[%clk 0:00:09.5]} 55... Kh7 {[%clk 0:00:07.3]} 56. g6+ {[%clk 0:00:10.4]}
56... fxg6+ {[%clk 0:00:06.9]} 57. Kg5 {[%clk 0:00:11.3]} 57... Kg7 {[%clk
0:00:07.6]} 58. Kh4 {[%clk 0:00:09.8]} 58... Ra5 {[%clk 0:00:08.5]} 59. g5
{[%clk 0:00:10.7]} 59... Kf7 {[%clk 0:00:08.6]} 60. Kg4 {[%clk 0:00:11.6]} 60...
Ke6 {[%clk 0:00:09.4]} 61. Kf4 {[%clk 0:00:12.5]} 61... Ra4+ {[%clk 0:00:09.6]}
0-1

[Event "Late-Titled-Tuesday-Blitz-April-30-2024"]
[Site "Chess.com"]
[Date "2024.04.30"]
[Round "6"]
[White "cristianserban1"]
[Black "Agustin_Meza"]
[Result "1-0"]
[WhiteElo "2497"]
[BlackElo "2155"]
[TimeControl "180+1"]
[EndTime "15:07:48 PDT"]
[Termination "cristianserban1 won by checkmate"]

1. d4 {[%clk 0:03:00.7]} 1... d5 {[%clk 0:02:57.9]} 2. Nf3 {[%clk 0:02:59]} 2...
c5 {[%clk 0:02:57.3]} 3. dxc5 {[%clk 0:02:37]} 3... e6 {[%clk 0:02:45]} 4. c4
{[%clk 0:02:25.2]} 4... Bxc5 {[%clk 0:02:43.9]} 5. cxd5 {[%clk 0:02:23.8]} 5...
exd5 {[%clk 0:02:44.8]} 6. e3 {[%clk 0:02:21.2]} 6... Nf6 {[%clk 0:02:44.2]} 7.
Nc3 {[%clk 0:02:19]} 7... Be6 {[%clk 0:02:42.9]} 8. a3 {[%clk 0:01:53.3]} 8...
O-O {[%clk 0:02:40.6]} 9. b4 {[%clk 0:01:51.4]} 9... Be7 {[%clk 0:02:40.4]} 10.
Bb2 {[%clk 0:01:51.5]} 10... Nc6 {[%clk 0:02:37.6]} 11. Bd3 {[%clk 0:01:41]}
11... Bg4 {[%clk 0:02:30.7]} 12. Ne2 {[%clk 0:01:35.6]} 12... Ne4 {[%clk
0:02:14.2]} 13. Nfd4 {[%clk 0:01:31.1]} 13... Nxd4 {[%clk 0:02:11.5]} 14. Bxd4
{[%clk 0:01:30.7]} 14... Bxe2 {[%clk 0:02:07.6]} 15. Qxe2 {[%clk 0:01:25.8]}
15... Bf6 {[%clk 0:02:07.3]} 16. Qb2 {[%clk 0:01:26.1]} 16... Rc8 {[%clk
0:01:34.9]} 17. O-O {[%clk 0:01:21.3]} 17... Qe7 {[%clk 0:01:18.1]} 18. Rac1
{[%clk 0:00:55.2]} 18... b6 {[%clk 0:01:02.8]} 19. Rfd1 {[%clk 0:00:52.5]} 19...
Bxd4 {[%clk 0:00:25.4]} 20. Qxd4 {[%clk 0:00:53.4]} 20... Qh4 {[%clk 0:00:15.2]}
21. g3 {[%clk 0:00:49.2]} 21... Qf6 {[%clk 0:00:11.9]} 22. Qxf6 {[%clk
0:00:18.3]} 22... Nxf6 {[%clk 0:00:12.7]} 23. Ba6 {[%clk 0:00:15.3]} 23... Rxc1
{[%clk 0:00:09.6]} 24. Rxc1 {[%clk 0:00:16.2]} 24... Ne8 {[%clk 0:00:08.3]} 25.
Bb7 {[%clk 0:00:11.6]} 25... Nf6 {[%clk 0:00:06.4]} 26. Rc7 {[%clk 0:00:11.2]}
26... h6 {[%clk 0:00:04.7]} 27. Ba6 {[%clk 0:00:11]} 27... Ne4 {[%clk
0:00:03.5]} 28. Rxa7 {[%clk 0:00:10.3]} 28... Nc3 {[%clk 0:00:02.4]} 29. Rd7
{[%clk 0:00:09.1]} 29... b5 {[%clk 0:00:02.2]} 30. Rc7 {[%clk 0:00:07.3]} 30...
Ne4 {[%clk 0:00:01.8]} 31. Bxb5 {[%clk 0:00:07.4]} 31... Nd6 {[%clk 0:00:01.8]}
32. Bd3 {[%clk 0:00:07.5]} 32... Ra8 {[%clk 0:00:02.1]} 33. Rc3 {[%clk
0:00:07.1]} 33... Ne4 {[%clk 0:00:01.9]} 34. Bxe4 {[%clk 0:00:07.1]} 34... dxe4
{[%clk 0:00:02.8]} 35. Rb3 {[%clk 0:00:07.5]} 35... Kf8 {[%clk 0:00:03.3]} 36.
h4 {[%clk 0:00:07.9]} 36... Ke8 {[%clk 0:00:04.2]} 37. b5 {[%clk 0:00:08.2]}
37... Kd7 {[%clk 0:00:05.1]} 38. Kg2 {[%clk 0:00:08]} 38... Kc7 {[%clk 0:00:06]}
39. g4 {[%clk 0:00:07.9]} 39... Kb6 {[%clk 0:00:05.9]} 40. Kg3 {[%clk
0:00:08.3]} 40... g5 {[%clk 0:00:05.8]} 41. hxg5 {[%clk 0:00:08.1]} 41... hxg5
{[%clk 0:00:06.7]} 42. f4 {[%clk 0:00:07.8]} 42... exf3 {[%clk 0:00:07.6]} 43.
Kxf3 {[%clk 0:00:08.4]} 43... Ra4 {[%clk 0:00:08.5]} 44. e4 {[%clk 0:00:05.8]}
44... f6 {[%clk 0:00:09]} 45. Ke3 {[%clk 0:00:04.8]} 45... Kc5 {[%clk
0:00:09.5]} 46. b6 {[%clk 0:00:04.9]} 46... Ra8 {[%clk 0:00:09.4]} 47. a4 {[%clk
0:00:04.5]} 47... Rb8 {[%clk 0:00:10.3]} 48. a5 {[%clk 0:00:04.8]} 48... Kc6
{[%clk 0:00:10.8]} 49. e5 {[%clk 0:00:03.6]} 49... fxe5 {[%clk 0:00:10.9]} 50.
Ke4 {[%clk 0:00:04.2]} 50... Rf8 {[%clk 0:00:10.9]} 51. b7 {[%clk 0:00:04]}
51... Rf4+ {[%clk 0:00:10.7]} 52. Kxe5 {[%clk 0:00:04.5]} 52... Rf8 {[%clk
0:00:09.8]} 53. b8=Q {[%clk 0:00:04.9]} 53... Rf5+ {[%clk 0:00:07.9]} 54. Ke6
{[%clk 0:00:04.6]} 54... Re5+ {[%clk 0:00:07]} 55. Kxe5 {[%clk 0:00:03.4]} 55...
Kc5 {[%clk 0:00:06.7]} 56. Qd6+ {[%clk 0:00:03.8]} 56... Kc4 {[%clk 0:00:07.6]}
57. Qd5# {[%clk 0:00:04.4]} 1-0

[Event "Late-Titled-Tuesday-Blitz-April-30-2024"]
[Site "Chess.com"]
[Date "2024.04.30"]
[Round "6"]
[White "Indefatigable11"]
[Black "Caterpiller35"]
[Result "1-0"]
[WhiteElo "2381"]
[BlackElo "2476"]
[TimeControl "180+1"]
[EndTime "15:07:48 PDT"]
[Termination "Indefatigable11 won by checkmate"]

1. Nf3 {[%clk 0:03:00.9]} 1... Nf6 {[%clk 0:02:58.9]} 2. d4 {[%clk 0:03:01.2]}
2... g6 {[%clk 0:02:57.7]} 3. c4 {[%clk 0:03:01.1]} 3... Bg7 {[%clk 0:02:58]} 4.
Nc3 {[%clk 0:03:01.2]} 4... d6 {[%clk 0:02:58.2]} 5. e4 {[%clk 0:03:00.2]} 5...
O-O {[%clk 0:02:58]} 6. Be2 {[%clk 0:03:00.4]} 6... e5 {[%clk 0:02:56.3]} 7. O-O
{[%clk 0:03:00.6]} 7... Bg4 {[%clk 0:02:56.1]} 8. d5 {[%clk 0:02:49.7]} 8... a5
{[%clk 0:02:56]} 9. h3 {[%clk 0:02:46.8]} 9... Bxf3 {[%clk 0:02:53.6]} 10. Bxf3
{[%clk 0:02:47.2]} 10... Na6 {[%clk 0:02:53.8]} 11. Be3 {[%clk 0:02:46.6]} 11...
Qd7 {[%clk 0:02:52.5]} 12. a3 {[%clk 0:02:44.7]} 12... h5 {[%clk 0:02:38.3]} 13.
Be2 {[%clk 0:02:43.3]} 13... Kh7 {[%clk 0:02:37]} 14. Qc2 {[%clk 0:02:42.8]}
14... Bh6 {[%clk 0:02:34.8]} 15. Bxh6 {[%clk 0:02:39.3]} 15... Kxh6 {[%clk
0:02:35.7]} 16. Nb5 {[%clk 0:02:33.7]} 16... Nc5 {[%clk 0:02:30.4]} 17. f3
{[%clk 0:02:30]} 17... a4 {[%clk 0:02:28.2]} 18. Bd1 {[%clk 0:02:23.5]} 18... h4
{[%clk 0:02:24.3]} 19. Nc3 {[%clk 0:02:21.6]} 19... Nh5 {[%clk 0:02:20.4]} 20.
Qd2+ {[%clk 0:02:20.6]} 20... Nf4 {[%clk 0:02:18.5]} 21. Ne2 {[%clk 0:02:18.1]}
21... g5 {[%clk 0:02:11]} 22. Nxf4 {[%clk 0:02:09.2]} 22... gxf4 {[%clk
0:02:08.2]} 23. Qf2 {[%clk 0:02:08.4]} 23... Kh5 {[%clk 0:02:07.2]} 24. Rb1
{[%clk 0:01:56]} 24... Rg8 {[%clk 0:02:04.1]} 25. Kh2 {[%clk 0:01:54.1]} 25...
Rg3 {[%clk 0:02:00.7]} 26. Bc2 {[%clk 0:01:52.3]} 26... Rag8 {[%clk 0:01:57.5]}
27. Rg1 {[%clk 0:01:52.3]} 27... b6 {[%clk 0:01:52.9]} 28. Rbd1 {[%clk
0:01:40.7]} 28... Qe7 {[%clk 0:01:47.6]} 29. Rd2 {[%clk 0:01:39.9]} 29... Qg5
{[%clk 0:01:46.6]} 30. Qe1 {[%clk 0:01:31.8]} 30... Kh6 {[%clk 0:01:39.1]} 31.
Qd1 {[%clk 0:01:28.7]} 31... Rg6 {[%clk 0:01:23.6]} 32. Rf2 {[%clk 0:01:27.9]}
32... f6 {[%clk 0:01:06.9]} 33. Rd2 {[%clk 0:01:11.3]} 33... Kg7 {[%clk
0:01:01.4]} 34. Rf2 {[%clk 0:01:10.6]} 34... Kf8 {[%clk 0:01:00.9]} 35. Rd2
{[%clk 0:01:10]} 35... Ke7 {[%clk 0:00:59.3]} 36. Rf2 {[%clk 0:01:10]} 36... Rg8
{[%clk 0:00:51.7]} 37. Rd2 {[%clk 0:01:08.8]} 37... Qg7 {[%clk 0:00:31.1]} 38.
Rf2 {[%clk 0:01:07.3]} 38... Kd8 {[%clk 0:00:30.3]} 39. Rd2 {[%clk 0:01:05.6]}
39... Qd7 {[%clk 0:00:30.4]} 40. Rf2 {[%clk 0:00:56.4]} 40... Ke7 {[%clk
0:00:24.2]} 41. Qd2 {[%clk 0:00:54.2]} 41... Rxh3+ {[%clk 0:00:14.3]} 42. gxh3
{[%clk 0:00:52.9]} 42... Rg3 {[%clk 0:00:14.9]} 43. Kh1 {[%clk 0:00:47.3]} 43...
Qxh3+ {[%clk 0:00:08.6]} 44. Rh2 {[%clk 0:00:47.1]} 44... Rxg1+ {[%clk
0:00:08.1]} 45. Kxg1 {[%clk 0:00:46.7]} 45... Qxf3 {[%clk 0:00:07.3]} 46. Qg2
{[%clk 0:00:42.1]} 46... Qe3+ {[%clk 0:00:06.4]} 47. Kh1 {[%clk 0:00:37.4]}
47... Qc1+ {[%clk 0:00:06.2]} 48. Qg1 {[%clk 0:00:37.7]} 48... Qxb2 {[%clk
0:00:03.4]} 49. Rxh4 {[%clk 0:00:30.9]} 49... Kd7 {[%clk 0:00:03.7]} 50. Rh7+
{[%clk 0:00:29.8]} 50... Kc8 {[%clk 0:00:03.6]} 51. Qg4+ {[%clk 0:00:11.8]}
51... Kb7 {[%clk 0:00:03.4]} 52. Rh8 {[%clk 0:00:12.1]} 52... Qc1+ {[%clk
0:00:03.4]} 53. Bd1 {[%clk 0:00:10.7]} 53... Na6 {[%clk 0:00:01.1]} 54. Qc8+
{[%clk 0:00:09.4]} 54... Ka7 {[%clk 0:00:00.6]} 55. Qa8# {[%clk 0:00:09.5]} 1-0

[Event "Late-Titled-Tuesday-Blitz-April-30-2024"]
[Site "Chess.com"]
[Date "2024.04.30"]
[Round "6"]
[White "Carlitus2004"]
[Black "KebabJangles"]
[Result "1-0"]
[WhiteElo "2489"]
[BlackElo "2316"]
[TimeControl "180+1"]
[EndTime "15:07:52 PDT"]
[Termination "Carlitus2004 won on time"]

1. Nf3 {[%clk 0:02:59.4]} 1... Nf6 {[%clk 0:02:59.1]} 2. e3 {[%clk 0:02:57]}
2... g6 {[%clk 0:02:57.7]} 3. b3 {[%clk 0:02:56.9]} 3... Bg7 {[%clk 0:02:57.1]}
4. Bb2 {[%clk 0:02:57.6]} 4... O-O {[%clk 0:02:56.4]} 5. d4 {[%clk 0:02:57.9]}
5... d6 {[%clk 0:02:55]} 6. Be2 {[%clk 0:02:57.8]} 6... Nbd7 {[%clk 0:02:46.5]}
7. O-O {[%clk 0:02:57.9]} 7... e5 {[%clk 0:02:42.9]} 8. dxe5 {[%clk 0:02:57.5]}
8... Ng4 {[%clk 0:02:42.2]} 9. c4 {[%clk 0:02:57.9]} 9... Ngxe5 {[%clk
0:02:40.7]} 10. Nc3 {[%clk 0:02:57.5]} 10... Nxf3+ {[%clk 0:02:40.5]} 11. Bxf3
{[%clk 0:02:57.8]} 11... Ne5 {[%clk 0:02:40.1]} 12. Be2 {[%clk 0:02:58.2]} 12...
Be6 {[%clk 0:02:08.2]} 13. Qd2 {[%clk 0:02:57.8]} 13... Qe7 {[%clk 0:02:05.2]}
14. Rad1 {[%clk 0:02:57.5]} 14... Rad8 {[%clk 0:02:04.6]} 15. Rc1 {[%clk
0:02:57.1]} 15... c6 {[%clk 0:02:03.6]} 16. Rfd1 {[%clk 0:02:56.6]} 16... f5
{[%clk 0:02:02.2]} 17. f4 {[%clk 0:02:44.4]} 17... Nf7 {[%clk 0:02:00.8]} 18.
Bf3 {[%clk 0:02:44.8]} 18... Rfe8 {[%clk 0:01:49.4]} 19. Re1 {[%clk 0:02:42.1]}
19... g5 {[%clk 0:01:44.1]} 20. g3 {[%clk 0:02:35.3]} 20... g4 {[%clk
0:01:41.6]} 21. Bg2 {[%clk 0:02:35.3]} 21... Nh6 {[%clk 0:01:40.7]} 22. Ne2
{[%clk 0:02:30.6]} 22... d5 {[%clk 0:01:36.2]} 23. c5 {[%clk 0:02:27.2]} 23...
Bc8 {[%clk 0:01:13.1]} 24. Bxg7 {[%clk 0:02:25]} 24... Kxg7 {[%clk 0:01:11.6]}
25. Nd4 {[%clk 0:02:25.1]} 25... Ng8 {[%clk 0:01:09.7]} 26. Qd3 {[%clk 0:02:19]}
26... Kg6 {[%clk 0:00:58.8]} 27. h3 {[%clk 0:02:18.6]} 27... h5 {[%clk
0:00:58.9]} 28. hxg4 {[%clk 0:02:18.8]} 28... hxg4 {[%clk 0:00:59.8]} 29. Kf2
{[%clk 0:02:19.2]} 29... Nf6 {[%clk 0:00:59.6]} 30. Rh1 {[%clk 0:02:19.6]} 30...
Rh8 {[%clk 0:00:59.4]} 31. b4 {[%clk 0:02:15.7]} 31... a6 {[%clk 0:00:58.9]} 32.
a4 {[%clk 0:02:15.2]} 32... Bd7 {[%clk 0:00:59]} 33. Rb1 {[%clk 0:02:01.4]}
33... Ra8 {[%clk 0:00:54.6]} 34. Nb3 {[%clk 0:01:55.3]} 34... Rh7 {[%clk
0:00:46.1]} 35. Rxh7 {[%clk 0:01:54]} 35... Qxh7 {[%clk 0:00:45.9]} 36. Rh1
{[%clk 0:01:54.2]} 36... Qg7 {[%clk 0:00:45.2]} 37. Qd4 {[%clk 0:01:35.6]} 37...
Re8 {[%clk 0:00:38.8]} 38. Qd3 {[%clk 0:01:26.5]} 38... Rh8 {[%clk 0:00:30.9]}
39. Rxh8 {[%clk 0:01:15.6]} 39... Qxh8 {[%clk 0:00:31.8]} 40. Nd4 {[%clk
0:01:03]} 40... Qh2 {[%clk 0:00:27.8]} 41. Ne2 {[%clk 0:01:01.2]} 41... Ne4+
{[%clk 0:00:25.8]} 42. Kf1 {[%clk 0:00:55.6]} 42... Nxg3+ {[%clk 0:00:13.2]} 43.
Nxg3 {[%clk 0:00:55.9]} 43... Qxg3 {[%clk 0:00:14.1]} 44. Qd4 {[%clk 0:00:53.5]}
44... Qh4 {[%clk 0:00:14.2]} 45. Qe5 {[%clk 0:00:52.5]} 45... Qf6 {[%clk
0:00:14.7]} 46. Qc7 {[%clk 0:00:47.3]} 46... Qe6 {[%clk 0:00:10.9]} 47. Kf2
{[%clk 0:00:44.7]} 47... Bc8 {[%clk 0:00:06.8]} 48. Qd8 {[%clk 0:00:42.1]} 48...
Qd7 {[%clk 0:00:06.8]} 49. Qg5+ {[%clk 0:00:38]} 49... Kf7 {[%clk 0:00:06.6]}
50. Bf1 {[%clk 0:00:34.7]} 50... Qe7 {[%clk 0:00:05.1]} 51. Qh5+ {[%clk
0:00:32.2]} 51... Kg7 {[%clk 0:00:03.8]} 52. Bd3 {[%clk 0:00:31.4]} 52... Qe6
{[%clk 0:00:04.2]} 53. Qg5+ {[%clk 0:00:29]} 53... Kf7 {[%clk 0:00:04.8]} 54.
Qh5+ {[%clk 0:00:28.1]} 54... Ke7 {[%clk 0:00:05.3]} 55. Qh7+ {[%clk 0:00:27.9]}
55... Kd8 {[%clk 0:00:05.5]} 56. Qg7 {[%clk 0:00:26.3]} 56... Qe7 {[%clk
0:00:04.8]} 57. Qd4 {[%clk 0:00:20.6]} 57... Kc7 {[%clk 0:00:05]} 58. b5 {[%clk
0:00:21.3]} 58... axb5 {[%clk 0:00:05.1]} 59. axb5 {[%clk 0:00:22.2]} 59... Kb8
{[%clk 0:00:05.4]} 60. b6 {[%clk 0:00:21.8]} 60... Qh7 {[%clk 0:00:03.9]} 61.
Kg2 {[%clk 0:00:21.2]} 61... Qh3+ {[%clk 0:00:03.5]} 62. Kf2 {[%clk 0:00:18.2]}
62... g3+ {[%clk 0:00:03.8]} 63. Ke1 {[%clk 0:00:17.5]} 63... Qh1+ {[%clk
0:00:04.1]} 64. Kd2 {[%clk 0:00:17.6]} 64... g2 {[%clk 0:00:04.4]} 65. Qa4
{[%clk 0:00:15.5]} 65... Qd1+ {[%clk 0:00:03]} 66. Qxd1 {[%clk 0:00:14.6]} 1-0